[Event "Chinese Team-ch Men 2025"]
[Site "Zhang Jiakou Hebei"]
[Date "2025.04.27"]
[Round "3.5"]
[White "Wang, Yue"]
[Black "Wen, Yang"]
[Result "1/2-1/2"]
[Annotator "TA"]
[ECO "C67"]
[WhiteElo "2640"]
[BlackElo "2572"]
[PlyCount "60"]
[EventDate "2025.04.26"]
[EventType "team-tourn"]
[EventCountry "CHN"]
[SourceTitle "playchess.com"]
[Source "ChessBase"]
[SourceQuality "1"]
[TimeControl "5400+30"]

{[%evp 16,60,22,18,21,0,12,0,9,15,19,4,9,12,26,13,37,34,35,8,17,14,24,11,16,14,7,7,13,0,5,0,0,0,0,0,6,-26,0,0,0,0,0,0,0,0,0]} 1. e4 {[%emt 0:00:05]} e5 {[%emt 0:00:10]} 2. Nf3 {[%emt 0:00:58]} Nc6 {[%emt 0:00:06]} 3. Bb5 {[%emt 0:04:10]} Nf6 {[%emt 0:02:46]} 4. O-O {[%emt 0:03:08][%cal Bh1f1,Bf1e1,Be1e5][%mdl 32]} Nxe4 {[%emt 0:00:26]} 5. Re1 {[%emt 0:05:10]} Nd6 {[%emt 0:00:07]} 6. Nxe5 {[%emt 0:00:20]} Be7 {[%emt 0:00:08]} 7. Bf1 {[%emt 0:00:16]} Nxe5 {[%emt 0:02:21]} 8. Rxe5 {[%emt 0:02:38]} O-O {[%emt 0:01:04]} 9. d4 {[%emt 0:00:06]} Ne8 {[%emt 0:11:08] C67: Ruy Lopez: Berlin Defence: 4 0-0 Nxe4.} 10. Re1 {[%emt 0:05:54]} d5 {[%emt 0:00:23]} 11. Nd2 {[%emt 0:00:14]} Bg5 $146 {[%emt 0:07:15]} (11... Bd6 12. c3 Bf5 13. Nf3 c6 14. Bd3 Qf6 15. Bg5 Qg6 16. Nh4 Qxg5 17. Nxf5 Rd8 {1-0 Guliyev,N (2529)-Doluhanova,E (2229) FRA-ch Blitz Online Qual 2020 (13)}) 12. Nf3 {[%emt 0:01:03]} Bxc1 {[%emt 0:00:40]} 13. Qxc1 {[%emt 0:02:57]} Bf5 {[%emt 0:00:13]} 14. c3 {[%emt 0:00:34]} Qd6 {[%emt 0:03:28]} 15. Qg5 {[%emt 0:02:47]} Qf6 {[%emt 0:04:17]} 16. Qxf6 {[%emt 0:01:04]} Nxf6 {[%emt 0:00:05]} 17. Nd2 {[%emt 0:00:05]} Rfe8 {[%emt 0:01:24]} 18. f3 {[%emt 0:00:16]} h5 {[%emt 0:00:37]} 19. Kf2 {[%emt 0:02:18]} Kf8 {[%emt 0:00:16]} 20. h4 {[%emt 0:00:26]} c6 {[%emt 0:00:19]} 21. Nb3 {[%emt 0:01:13]} b6 {[%emt 0:02:11] The position is symmetric and equal} 22. Ba6 {[%emt 0:01:55]} Rab8 {[%emt 0:00:20] Dodges Bb7} 23. Rxe8+ {[%emt 0:02:38]} Nxe8 {[%emt 0:00:45]} 24. Be2 {[%emt 0:00:16]} Nd6 {[%emt 0:00:25]} 25. Nc1 {[%emt 0:00:18]} g6 {[%emt 0:00:06]} 26. Bd3 {[%emt 0:01:16]} Bxd3 {[%emt 0:00:32]} 27. Nxd3 {[%emt 0:00:05] The position is equal.} f6 {[%emt 0:00:15]} 28. a4 {[%emt 0:00:46]} a5 {[%emt 0:00:16]} 29. Re1 {[%emt 0:00:12]} Kf7 {[%emt 0:00:06] Repels Re6} 30. g3 {[%emt 0:00:25]} Rb7 {[%emt 0:01:51] Weighted Error Value: White=0.07 (flawless) /Black=0.06 (flawless)   Inaccurate:     	White=2     	Black=1      OK:         	White=5     	Black=10} 1/2-1/2

[Event "Chinese Team-ch Men 2025"]
[Site "Zhang Jiakou Hebei"]
[Date "2025.04.27"]
[Round "3.6"]
[White "Zhao, Jun"]
[Black "Dai, Changren"]
[Result "0-1"]
[Annotator "ChessBase"]
[ECO "B11"]
[WhiteElo "2532"]
[BlackElo "2527"]
[PlyCount "80"]
[EventDate "2025.04.26"]
[EventType "team-tourn"]
[EventCountry "CHN"]
[SourceTitle "playchess.com"]
[Source "ChessBase"]
[SourceQuality "1"]
[TimeControl "5400+30"]

1. e4 {[%emt 0:00:04]} c6 {[%emt 0:00:13]} 2. Nf3 {[%emt 0:00:49]} d5 {[%emt 0:00:53]} 3. Nc3 {[%emt 0:00:20]} dxe4 {[%emt 0:01:32]} 4. Nxe4 {[%emt 0:00:08]} Nf6 {[%emt 0:00:03]} 5. Qe2 {[%emt 0:00:19]} Nxe4 {[%emt 0:00:07]} 6. Qxe4 {[%emt 0:00:06]} Nd7 {[%emt 0:00:08]} 7. Bc4 {[%emt 0:01:46]} Nf6 {[%emt 0:00:07]} 8. Ne5 {[%emt 0:00:58]} e6 {[%emt 0:00:07]} 9. Qe2 {[%emt 0:00:22]} b5 {[%emt 0:00:10]} 10. Bb3 {[%emt 0:01:01]} Qc7 {[%emt 0:02:06]} 11. d4 {[%emt 0:00:50]} Bd6 {[%emt 0:04:51]} 12. Bf4 {[%emt 0:20:06]} a5 {[%emt 0:03:39]} 13. a4 {[%emt 0:11:03]} O-O {[%emt 0:05:03]} 14. O-O {[%emt 0:02:57]} Ba6 {[%emt 0:04:46]} 15. Bg3 {[%emt 0:00:27]} b4 {[%emt 0:20:09]} 16. Bc4 {[%emt 0:06:14]} Bxc4 {[%emt 0:00:24]} 17. Qxc4 {[%emt 0:10:06]} Nh5 {[%emt 0:03:34]} 18. Nd3 {[%emt 0:02:32]} Nxg3 {[%emt 0:00:07]} 19. hxg3 {[%emt 0:00:05]} Rfd8 {[%emt 0:05:00]} 20. c3 {[%emt 0:01:03]} Rab8 {[%emt 0:02:21]} 21. Rfc1 {[%emt 0:07:07]} h6 {[%emt 0:05:02]} 22. Rc2 {[%emt 0:10:43]} bxc3 {[%emt 0:09:41]} 23. bxc3 {[%emt 0:00:36]} c5 {[%emt 0:00:35]} 24. dxc5 {[%emt 0:02:30]} Rdc8 {[%emt 0:01:11]} 25. Rd2 {[%emt 0:03:00]} Bxc5 {[%emt 0:05:57]} 26. Nxc5 {[%emt 0:00:15]} Qb6 {[%emt 0:00:16]} 27. Rad1 {[%emt 0:07:50]} Rxc5 {[%emt 0:00:10]} 28. Qe4 {[%emt 0:01:56]} Rxc3 {[%emt 0:08:45]} 29. Rd6 {[%emt 0:00:21]} Rc1 {[%emt 0:00:31]} 30. Rxc1 {[%emt 0:08:04]} Qxd6 {[%emt 0:00:05]} 31. g4 {[%emt 0:00:42]} g6 {[%emt 0:05:28]} 32. Rc4 {[%emt 0:01:37]} Rb4 {[%emt 0:02:01]} 33. Qc2 {[%emt 0:00:31]} Qe5 {[%emt 0:05:47]} 34. Rxb4 {[%emt 0:00:21]} axb4 {[%emt 0:00:01]} 35. Qc8+ {[%emt 0:00:39]} Kg7 {[%emt 0:00:02]} 36. Qc4 {[%emt 0:00:29]} Qc3 {[%emt 0:00:33]} 37. Qb5 {[%emt 0:00:11]} b3 {[%emt 0:00:38]} 38. Kh2 {[%emt 0:00:41]} b2 {[%emt 0:00:20]} 39. a5 {[%emt 0:00:14]} Qc1 {[%emt 0:01:39]} 40. Qe5+ {[%emt 0:00:11]} Kh7 {[%emt 0:00:09]} 0-1

[Event "Chinese Team-ch Men 2025"]
[Site "Zhang Jiakou Hebei"]
[Date "2025.04.27"]
[Round "3.7"]
[White "Chu, Weichao"]
[Black "Xiao, Tong"]
[Result "0-1"]
[Annotator "ChessBase"]
[ECO "A04"]
[WhiteElo "2406"]
[BlackElo "2496"]
[PlyCount "70"]
[EventDate "2025.04.26"]
[EventType "team-tourn"]
[EventCountry "CHN"]
[SourceTitle "playchess.com"]
[Source "ChessBase"]
[SourceQuality "1"]
[TimeControl "5400+30"]

1. Nf3 {[%emt 0:00:03]} e6 {[%emt 0:01:27]} 2. g3 {[%emt 0:02:32]} b5 {[%emt 0:00:22]} 3. Bg2 {[%emt 0:02:52]} Bb7 {[%emt 0:00:05]} 4. O-O {[%emt 0:00:10]} g6 {[%emt 0:01:30]} 5. d3 {[%emt 0:01:40]} Bg7 {[%emt 0:00:16]} 6. c4 {[%emt 0:05:23]} a6 {[%emt 0:13:07]} 7. Qb3 {[%emt 0:06:11]} Qc8 {[%emt 0:13:02]} 8. Na3 {[%emt 0:14:33]} bxc4 {[%emt 0:07:16]} 9. Nxc4 {[%emt 0:01:27]} Nc6 {[%emt 0:00:21]} 10. Bd2 {[%emt 0:00:17]} a5 {[%emt 0:04:36]} 11. Bc3 {[%emt 0:03:11]} Nf6 {[%emt 0:02:14]} 12. a4 {[%emt 0:03:11]} d6 {[%emt 0:10:33]} 13. Rfc1 {[%emt 0:03:21]} O-O {[%emt 0:02:18]} 14. Qd1 {[%emt 0:08:30]} Nd5 {[%emt 0:03:38]} 15. Bxg7 {[%emt 0:10:08]} Kxg7 {[%emt 0:00:46]} 16. e4 {[%emt 0:00:03]} Nb6 {[%emt 0:04:29]} 17. Qb3 {[%emt 0:03:57]} Ra6 {[%emt 0:02:21]} 18. Na3 {[%emt 0:00:52]} Nd7 {[%emt 0:03:27]} 19. d4 {[%emt 0:03:21]} Nb4 {[%emt 0:01:50]} 20. Nb5 {[%emt 0:02:52]} Bxe4 {[%emt 0:01:54]} 21. Rxc7 {[%emt 0:01:21]} Qd8 {[%emt 0:00:19]} 22. Rac1 {[%emt 0:04:05]} Bd5 {[%emt 0:01:31]} 23. Qe3 {[%emt 0:03:03]} h6 {[%emt 0:00:15]} 24. h4 {[%emt 0:01:56]} Nf6 {[%emt 0:00:17]} 25. Qe2 {[%emt 0:01:07]} Bb3 {[%emt 0:10:33]} 26. Rb7 {[%emt 0:00:02]} Rb6 {[%emt 0:01:19]} 27. Ra7 {[%emt 0:01:53]} Nc6 {[%emt 0:01:02]} 28. Nd2 {[%emt 0:05:11]} Nxa7 {[%emt 0:00:10]} 29. Nxb3 {[%emt 0:00:04]} Qb8 {[%emt 0:01:00]} 30. Bf1 {[%emt 0:00:51]} Nxb5 {[%emt 0:02:23]} 31. axb5 {[%emt 0:00:02]} Qa7 {[%emt 0:00:06]} 32. Ra1 {[%emt 0:03:07]} a4 {[%emt 0:00:03]} 33. Qc4 {[%emt 0:00:39]} Ra8 {[%emt 0:00:08]} 34. Bg2 {[%emt 0:02:03]} d5 {[%emt 0:00:15]} 35. Qe2 {[%emt 0:00:20]} Qb8 {[%emt 0:00:18]} 0-1

[Event "Chinese Team-ch Men 2025"]
[Site "Zhang Jiakou Hebei"]
[Date "2025.04.27"]
[Round "3.8"]
[White "Huang, Renjie"]
[Black "Xi, Qi"]
[Result "1/2-1/2"]
[Annotator "ChessBase"]
[ECO "C11"]
[WhiteElo "2491"]
[BlackElo "2257"]
[PlyCount "131"]
[EventDate "2025.04.26"]
[EventType "team-tourn"]
[EventCountry "CHN"]
[SourceTitle "playchess.com"]
[Source "ChessBase"]
[SourceQuality "1"]
[TimeControl "5400+30"]

1. e4 {[%emt 0:00:03]} e6 {[%emt 0:00:14]} 2. d4 {[%emt 0:00:05]} d5 {[%emt 0:00:03]} 3. Nc3 {[%emt 0:00:08]} Nf6 {[%emt 0:00:08]} 4. e5 {[%emt 0:00:17]} Nfd7 {[%emt 0:00:04]} 5. Nce2 {[%emt 0:00:15]} c5 {[%emt 0:00:12]} 6. c3 {[%emt 0:00:07]} Nc6 {[%emt 0:00:04]} 7. Nf3 {[%emt 0:00:07]} Be7 {[%emt 0:00:40]} 8. h4 {[%emt 0:02:04]} cxd4 {[%emt 0:07:52]} 9. cxd4 {[%emt 0:00:06]} f6 {[%emt 0:00:12]} 10. Nf4 {[%emt 0:00:32]} Ndxe5 {[%emt 0:00:40]} 11. dxe5 {[%emt 0:00:06]} fxe5 {[%emt 0:00:03]} 12. Nh3 {[%emt 0:00:07]} e4 {[%emt 0:01:52]} 13. Nh2 {[%emt 0:00:06]} O-O {[%emt 0:11:43]} 14. Be2 {[%emt 0:00:07]} Bxh4 {[%emt 0:10:58]} 15. O-O {[%emt 0:02:26]} Qb6 {[%emt 0:09:21]} 16. Ng4 {[%emt 0:08:38]} Bd7 {[%emt 0:09:33]} 17. Be3 {[%emt 0:03:06]} d4 {[%emt 0:04:22]} 18. Bg5 {[%emt 0:00:17]} Bxg5 {[%emt 0:00:08]} 19. Nxg5 {[%emt 0:00:02]} d3 {[%emt 0:00:31]} 20. Bxd3 {[%emt 0:06:10]} exd3 {[%emt 0:00:12]} 21. Qxd3 {[%emt 0:00:18]} Rf5 {[%emt 0:00:14]} 22. Qxd7 {[%emt 0:19:24]} Rxg5 {[%emt 0:00:13]} 23. Qxe6+ {[%emt 0:06:38]} Kh8 {[%emt 0:00:27]} 24. Rfe1 {[%emt 0:01:32]} Qd8 {[%emt 0:23:49]} 25. Rad1 {[%emt 0:04:14]} Qg8 {[%emt 0:01:13]} 26. Qd7 {[%emt 0:03:32]} Rb5 {[%emt 0:02:21]} 27. b3 {[%emt 0:01:53]} Rf8 {[%emt 0:02:23]} 28. Qc7 {[%emt 0:02:54]} Rc8 {[%emt 0:01:06]} 29. Qg3 {[%emt 0:00:29]} Rd5 {[%emt 0:01:04]} 30. Rxd5 {[%emt 0:06:41]} Qxd5 {[%emt 0:00:03]} 31. Qe3 {[%emt 0:00:13]} Kg8 {[%emt 0:01:49]} 32. Qg3 {[%emt 0:01:08]} Qd2 {[%emt 0:04:06]} 33. Re3 {[%emt 0:03:21]} Rf8 {[%emt 0:02:16]} 34. Rd3 {[%emt 0:10:07]} Qe1+ {[%emt 0:01:20]} 35. Kh2 {[%emt 0:00:01]} Qe7 {[%emt 0:00:29]} 36. Ne3 {[%emt 0:01:40]} h6 {[%emt 0:02:00]} 37. Kg1 {[%emt 0:01:22]} Qe5 {[%emt 0:01:13]} 38. Qg4 {[%emt 0:02:28]} Qf6 {[%emt 0:00:57]} 39. Rd2 {[%emt 0:00:59]} Qf4 {[%emt 0:01:28]} 40. Qe6+ {[%emt 0:01:41]} Kh7 {[%emt 0:01:10]} 41. Nc4 {[%emt 0:01:32]} Rf7 {[%emt 0:00:59]} 42. Qe2 {[%emt 0:00:37]} Re7 {[%emt 0:00:31]} 43. Qd3+ {[%emt 0:00:23]} Qe4 {[%emt 0:00:37]} 44. Qxe4+ {[%emt 0:01:54]} Rxe4 {[%emt 0:00:01]} 45. f3 {[%emt 0:00:13]} Re7 {[%emt 0:00:33]} 46. Kf2 {[%emt 0:00:10]} Kg6 {[%emt 0:01:00]} 47. g4 {[%emt 0:00:11]} Kf6 {[%emt 0:01:08]} 48. Ne3 {[%emt 0:00:12]} Kf7 {[%emt 0:00:20]} 49. Nf5 {[%emt 0:00:05]} Rc7 {[%emt 0:00:09]} 50. Ke3 {[%emt 0:00:13]} Ne7 {[%emt 0:00:32]} 51. Nd6+ {[%emt 0:01:05]} Ke6 {[%emt 0:00:17]} 52. Nb5 {[%emt 0:00:12]} Rc5 {[%emt 0:00:27]} 53. Rd6+ {[%emt 0:02:14]} Kf7 {[%emt 0:00:02]} 54. Nd4 {[%emt 0:00:42]} Rd5 {[%emt 0:01:04]} 55. Rxd5 {[%emt 0:03:48]} Nxd5+ {[%emt 0:00:11]} 56. Kd3 {[%emt 0:00:01]} Kf6 {[%emt 0:01:00]} 57. Nb5 {[%emt 0:00:45]} Nb4+ {[%emt 0:00:41]} 58. Kd4 {[%emt 0:00:50]} Nxa2 {[%emt 0:00:31]} 59. Nxa7 {[%emt 0:00:42]} g6 {[%emt 0:00:24]} 60. Nb5 {[%emt 0:01:05]} h5 {[%emt 0:00:34]} 61. Nd6 {[%emt 0:01:13]} b6 {[%emt 0:00:36]} 62. Ne4+ {[%emt 0:01:17]} Ke6 {[%emt 0:00:03]} 63. Ng5+ {[%emt 0:00:07]} Kf6 {[%emt 0:00:25]} 64. Ne4+ {[%emt 0:00:01]} Ke6 {[%emt 0:00:19]} 65. Ng5+ {[%emt 0:00:05]} Kf6 {[%emt 0:00:28]} 66. Ne4+ {[%emt 0:07:19]} 1/2-1/2

[Event "Chinese Team-ch Men 2025"]
[Site "Zhang Jiakou Hebei"]
[Date "2025.04.27"]
[Round "3.9"]
[White "Xu, Yi"]
[Black "Xu, Yinglun"]
[Result "1/2-1/2"]
[Annotator "ChessBase"]
[ECO "C10"]
[WhiteElo "2480"]
[BlackElo "2522"]
[PlyCount "60"]
[EventDate "2025.04.26"]
[EventType "team-tourn"]
[EventCountry "CHN"]
[SourceTitle "playchess.com"]
[Source "ChessBase"]
[SourceQuality "1"]
[TimeControl "5400+30"]

1. e4 {[%emt 0:00:06]} e6 {[%emt 0:00:28]} 2. d4 {[%emt 0:00:08]} d5 {[%emt 0:00:24]} 3. Nd2 {[%emt 0:02:09]} dxe4 {[%emt 0:00:52]} 4. Nxe4 {[%emt 0:00:06]} Nd7 {[%emt 0:00:10]} 5. Nf3 {[%emt 0:00:22]} Ngf6 {[%emt 0:00:46]} 6. Nxf6+ {[%emt 0:00:10]} Nxf6 {[%emt 0:00:07]} 7. c3 {[%emt 0:03:55]} c5 {[%emt 0:02:30]} 8. Ne5 {[%emt 0:01:07]} a6 {[%emt 0:01:29]} 9. Be3 {[%emt 0:02:04]} Qc7 {[%emt 0:00:52]} 10. Qa4+ {[%emt 0:00:45]} Nd7 {[%emt 0:01:01]} 11. Bb5 {[%emt 0:02:17]} cxd4 {[%emt 0:01:34]} 12. Bxd7+ {[%emt 0:00:58]} Bxd7 {[%emt 0:00:09]} 13. Qxd4 {[%emt 0:00:29]} Bb5 {[%emt 0:02:01]} 14. a4 {[%emt 0:01:12]} Bd6 {[%emt 0:01:23]} 15. Nxf7 {[%emt 0:02:28]} Kxf7 {[%emt 0:00:51]} 16. axb5 {[%emt 0:00:10]} axb5 {[%emt 0:00:10]} 17. Ke2 {[%emt 0:03:13]} Be7 {[%emt 0:01:40]} 18. Qe4 {[%emt 0:03:27]} Qc6 {[%emt 0:04:14]} 19. Qf3+ {[%emt 0:03:36]} Qxf3+ {[%emt 0:01:08]} 20. Kxf3 {[%emt 0:00:06]} e5 {[%emt 0:00:08]} 21. Ke4 {[%emt 0:02:50]} Ke6 {[%emt 0:00:06]} 22. Rhd1 {[%emt 0:01:47]} Ra6 {[%emt 0:00:43]} 23. Rxa6+ {[%emt 0:02:22]} bxa6 {[%emt 0:00:05]} 24. Ra1 {[%emt 0:02:27]} Ra8 {[%emt 0:00:08]} 25. b4 {[%emt 0:00:06]} Bd8 {[%emt 0:00:12]} 26. Bd2 {[%emt 0:01:46]} Bb6 {[%emt 0:00:09]} 27. Be3 {[%emt 0:00:05]} Bc7 {[%emt 0:00:05]} 28. Bd2 {[%emt 0:00:18]} Bb6 {[%emt 0:00:05]} 29. Be3 {[%emt 0:00:05]} Bc7 {[%emt 0:00:04]} 30. Bd2 {[%emt 0:00:05]} Bb6 {[%emt 0:00:04]} 1/2-1/2

[Event "Chinese Team-ch Men 2025"]
[Site "Zhang Jiakou Hebei"]
[Date "2025.04.27"]
[Round "3.10"]
[White "Zhao, Chenxi"]
[Black "Lou, Yiping"]
[Result "1/2-1/2"]
[Annotator "ChessBase"]
[ECO "C51"]
[WhiteElo "2453"]
[BlackElo "2464"]
[PlyCount "80"]
[EventDate "2025.04.26"]
[EventType "team-tourn"]
[EventCountry "CHN"]
[SourceTitle "playchess.com"]
[Source "ChessBase"]
[SourceQuality "1"]
[TimeControl "5400+30"]

1. e4 {[%emt 0:00:03]} e5 {[%emt 0:00:12]} 2. Nf3 {[%emt 0:00:05]} Nc6 {[%emt 0:00:05]} 3. Bc4 {[%emt 0:00:04]} Bc5 {[%emt 0:00:21]} 4. b4 {[%emt 0:00:04]} Bxb4 {[%emt 0:00:43]} 5. c3 {[%emt 0:00:05]} Be7 {[%emt 0:01:44]} 6. d4 {[%emt 0:00:50]} Na5 {[%emt 0:00:12]} 7. Bd3 {[%emt 0:00:05]} d6 {[%emt 0:04:05]} 8. dxe5 {[%emt 0:00:42]} dxe5 {[%emt 0:01:13]} 9. Nxe5 {[%emt 0:00:16]} Nf6 {[%emt 0:00:49]} 10. O-O {[%emt 0:00:17]} O-O {[%emt 0:01:46]} 11. Qc2 {[%emt 0:00:30]} Bd6 {[%emt 0:14:36]} 12. Nf3 {[%emt 0:00:30]} Re8 {[%emt 0:02:18]} 13. Bg5 {[%emt 0:00:21]} h6 {[%emt 0:02:59]} 14. Bh4 {[%emt 0:00:29]} g5 {[%emt 0:03:09]} 15. Bg3 {[%emt 0:02:15]} Bxg3 {[%emt 0:02:47]} 16. hxg3 {[%emt 0:01:31]} Ng4 {[%emt 0:01:28]} 17. Nbd2 {[%emt 0:01:23]} Qf6 {[%emt 0:04:21]} 18. Rfe1 {[%emt 0:13:01]} Bd7 {[%emt 0:02:02]} 19. Nb3 {[%emt 0:04:13]} Nxb3 {[%emt 0:01:32]} 20. axb3 {[%emt 0:01:11]} a5 {[%emt 0:01:43]} 21. b4 {[%emt 0:05:39]} axb4 {[%emt 0:07:02]} 22. Rxa8 {[%emt 0:00:28]} Rxa8 {[%emt 0:00:03]} 23. cxb4 {[%emt 0:08:36]} Ra1 {[%emt 0:00:38]} 24. Qd2 {[%emt 0:00:54]} Ne5 {[%emt 0:06:22]} 25. Be2 {[%emt 0:06:16]} Nxf3+ {[%emt 0:01:14]} 26. gxf3 {[%emt 0:03:13]} Qd6 {[%emt 0:00:32]} 27. Qc3 {[%emt 0:00:11]} Rxe1+ {[%emt 0:02:07]} 28. Qxe1 {[%emt 0:00:02]} c5 {[%emt 0:00:09]} 29. bxc5 {[%emt 0:01:14]} Qxc5 {[%emt 0:00:04]} 30. Qa1 {[%emt 0:00:16]} b5 {[%emt 0:08:55]} 31. Qa5 {[%emt 0:03:29]} Kg7 {[%emt 0:01:10]} 32. Kg2 {[%emt 0:00:27]} Qd4 {[%emt 0:02:29]} 33. Qc7 {[%emt 0:02:03]} b4 {[%emt 0:02:17]} 34. Bc4 {[%emt 0:00:11]} Qc3 {[%emt 0:01:03]} 35. Qxd7 {[%emt 0:00:28]} Qxc4 {[%emt 0:00:04]} 36. e5 {[%emt 0:00:50]} g4 {[%emt 0:05:28]} 37. e6 {[%emt 0:04:18]} gxf3+ {[%emt 0:00:46]} 38. Kh2 {[%emt 0:00:18]} Qxe6 {[%emt 0:04:07]} 39. Qd4+ {[%emt 0:00:14]} Kh7 {[%emt 0:00:26]} 40. Qxb4 {[%emt 0:00:09]} Qf5 {[%emt 0:00:51]} 1/2-1/2

[Event "Chinese Team-ch Men 2025"]
[Site "Zhang Jiakou Hebei"]
[Date "2025.04.27"]
[Round "3.11"]
[White "Meng, Yihan"]
[Black "Wu, Yixing"]
[Result "1/2-1/2"]
[Annotator "ChessBase"]
[ECO "C42"]
[WhiteElo "2433"]
[BlackElo "2406"]
[PlyCount "114"]
[EventDate "2025.04.26"]
[EventType "team-tourn"]
[EventCountry "CHN"]
[SourceTitle "playchess.com"]
[Source "ChessBase"]
[SourceQuality "1"]
[TimeControl "5400+30"]

1. e4 {[%emt 0:00:04]} e5 {[%emt 0:00:04]} 2. Nf3 {[%emt 0:00:05]} Nf6 {[%emt 0:00:05]} 3. Nxe5 {[%emt 0:01:59]} d6 {[%emt 0:00:05]} 4. Nf3 {[%emt 0:00:07]} Nxe4 {[%emt 0:00:05]} 5. d4 {[%emt 0:01:26]} d5 {[%emt 0:00:06]} 6. Bd3 {[%emt 0:00:05]} Bf5 {[%emt 0:00:33]} 7. O-O {[%emt 0:00:14]} Be7 {[%emt 0:00:06]} 8. Re1 {[%emt 0:01:21]} O-O {[%emt 0:00:14]} 9. c4 {[%emt 0:00:16]} Nc6 {[%emt 0:00:31]} 10. cxd5 {[%emt 0:01:58]} Qxd5 {[%emt 0:00:04]} 11. Nc3 {[%emt 0:00:11]} Nxc3 {[%emt 0:00:05]} 12. bxc3 {[%emt 0:00:03]} Bxd3 {[%emt 0:00:07]} 13. Qxd3 {[%emt 0:00:03]} Rae8 {[%emt 0:00:11]} 14. Bf4 {[%emt 0:02:34]} Bd6 {[%emt 0:00:13]} 15. Ng5 {[%emt 0:11:56]} g6 {[%emt 0:00:30]} 16. Ne4 {[%emt 0:02:04]} Re6 {[%emt 0:00:13]} 17. Bh6 {[%emt 0:09:08]} Rd8 {[%emt 0:01:16]} 18. Re3 {[%emt 0:06:31]} Be7 {[%emt 0:16:27]} 19. Bf4 {[%emt 0:07:00]} Ne5 {[%emt 0:04:15]} 20. Bxe5 {[%emt 0:06:23]} Rxe5 {[%emt 0:00:16]} 21. dxe5 {[%emt 0:00:18]} Qxd3 {[%emt 0:00:08]} 22. Rxd3 {[%emt 0:00:02]} Rxd3 {[%emt 0:00:09]} 23. Kf1 {[%emt 0:00:07]} Kg7 {[%emt 0:03:49]} 24. Rb1 {[%emt 0:05:31]} b6 {[%emt 0:00:10]} 25. Ke2 {[%emt 0:00:05]} Rd5 {[%emt 0:00:07]} 26. f4 {[%emt 0:00:03]} f6 {[%emt 0:08:03]} 27. Rd1 {[%emt 0:12:23]} Rxd1 {[%emt 0:00:20]} 28. exf6+ {[%emt 0:00:02]} Bxf6 {[%emt 0:00:06]} 29. Kxd1 {[%emt 0:00:02]} Kf7 {[%emt 0:01:44]} 30. Ke2 {[%emt 0:00:14]} Be7 {[%emt 0:02:56]} 31. g4 {[%emt 0:01:09]} Ke6 {[%emt 0:01:24]} 32. Kd3 {[%emt 0:00:15]} h5 {[%emt 0:11:26]} 33. h3 {[%emt 0:01:41]} hxg4 {[%emt 0:02:16]} 34. hxg4 {[%emt 0:00:05]} c6 {[%emt 0:11:49]} 35. Nd2 {[%emt 0:06:00]} b5 {[%emt 0:07:45]} 36. Nf3 {[%emt 0:01:51]} Bd6 {[%emt 0:14:50]} 37. Ke4 {[%emt 0:02:22]} c5 {[%emt 0:00:09]} 38. Nh4 {[%emt 0:08:14]} Kf6 {[%emt 0:02:10]} 39. g5+ {[%emt 0:12:13]} Kf7 {[%emt 0:00:12]} 40. f5 {[%emt 0:00:11]} gxf5+ {[%emt 0:00:18]} 41. Nxf5 {[%emt 0:00:25]} Bf8 {[%emt 0:00:21]} 42. Kd5 {[%emt 0:00:42]} b4 {[%emt 0:02:52]} 43. cxb4 {[%emt 0:01:11]} cxb4 {[%emt 0:00:06]} 44. Kc4 {[%emt 0:01:52]} Kg6 {[%emt 0:00:31]} 45. Nd4 {[%emt 0:00:05]} Be7 {[%emt 0:00:20]} 46. Nc6 {[%emt 0:01:32]} Bxg5 {[%emt 0:00:14]} 47. Kxb4 {[%emt 0:00:53]} Be3 {[%emt 0:01:01]} 48. Kb5 {[%emt 0:00:05]} Kf7 {[%emt 0:00:06]} 49. Ka6 {[%emt 0:01:18]} Ke8 {[%emt 0:00:05]} 50. Kb7 {[%emt 0:00:21]} Kd7 {[%emt 0:00:28]} 51. Ne5+ {[%emt 0:00:10]} Kd8 {[%emt 0:00:35]} 52. a4 {[%emt 0:00:07]} Bd2 {[%emt 0:00:22]} 53. Nc6+ {[%emt 0:00:08]} Kd7 {[%emt 0:00:04]} 54. Nxa7 {[%emt 0:00:04]} Be1 {[%emt 0:00:11]} 55. Nb5 {[%emt 0:00:19]} Kd8 {[%emt 0:00:16]} 56. Nd4 {[%emt 0:00:16]} Kd7 {[%emt 0:00:08]} 57. Nb3 {[%emt 0:00:15]} Kd8 {[%emt 0:00:07]} 1/2-1/2

[Event "Chinese Team-ch Men 2025"]
[Site "Zhang Jiakou Hebei"]
[Date "2025.04.27"]
[Round "3.12"]
[White "Ren, Yibai"]
[Black "Gong, Sunle"]
[Result "0-1"]
[Annotator "ChessBase"]
[ECO "B13"]
[WhiteElo "2027"]
[BlackElo "2410"]
[PlyCount "86"]
[EventDate "2025.04.26"]
[EventType "team-tourn"]
[EventCountry "CHN"]
[SourceTitle "playchess.com"]
[Source "ChessBase"]
[SourceQuality "1"]
[TimeControl "5400+30"]

1. e4 {[%emt 0:00:05]} c6 {[%emt 0:00:08]} 2. d4 {[%emt 0:00:21]} d5 {[%emt 0:00:16]} 3. exd5 {[%emt 0:00:17]} cxd5 {[%emt 0:00:03]} 4. Bd3 {[%emt 0:00:11]} Nc6 {[%emt 0:00:07]} 5. c3 {[%emt 0:00:09]} Nf6 {[%emt 0:00:30]} 6. h3 {[%emt 0:00:42]} g6 {[%emt 0:00:35]} 7. Nf3 {[%emt 0:00:30]} Bf5 {[%emt 0:00:04]} 8. Bf4 {[%emt 0:00:27]} Bxd3 {[%emt 0:00:52]} 9. Qxd3 {[%emt 0:00:02]} e6 {[%emt 0:00:08]} 10. O-O {[%emt 0:00:16]} Bg7 {[%emt 0:04:33]} 11. Nbd2 {[%emt 0:01:25]} O-O {[%emt 0:00:00]} 12. Rfe1 {[%emt 0:01:46]} Re8 {[%emt 0:02:37]} 13. Ne5 {[%emt 0:03:09]} Qb6 {[%emt 0:03:09]} 14. Nb3 {[%emt 0:03:44]} Ne4 {[%emt 0:04:02]} 15. Nd7 {[%emt 0:02:37]} Qd8 {[%emt 0:00:17]} 16. Ndc5 {[%emt 0:00:59]} Nxc5 {[%emt 0:02:11]} 17. Nxc5 {[%emt 0:00:12]} b6 {[%emt 0:00:50]} 18. Nb3 {[%emt 0:01:18]} Bf8 {[%emt 0:16:32]} 19. Nd2 {[%emt 0:08:46]} f6 {[%emt 0:07:23]} 20. Nf3 {[%emt 0:02:43]} Bd6 {[%emt 0:00:40]} 21. Bxd6 {[%emt 0:07:16]} Qxd6 {[%emt 0:00:05]} 22. Rad1 {[%emt 0:00:31]} Rad8 {[%emt 0:01:06]} 23. h4 {[%emt 0:01:34]} Kg7 {[%emt 0:01:32]} 24. Re2 {[%emt 0:05:59]} e5 {[%emt 0:18:13]} 25. dxe5 {[%emt 0:05:38]} fxe5 {[%emt 0:00:32]} 26. Rde1 {[%emt 0:02:13]} e4 {[%emt 0:00:45]} 27. Qd2 {[%emt 0:00:21]} Rf8 {[%emt 0:11:08]} 28. Nd4 {[%emt 0:08:46]} Ne5 {[%emt 0:00:52]} 29. Qg5 {[%emt 0:07:50]} Rde8 {[%emt 0:04:46]} 30. Re3 {[%emt 0:05:23]} Nc4 {[%emt 0:02:38]} 31. Rg3 {[%emt 0:03:42]} Re5 {[%emt 0:02:28]} 32. Qc1 {[%emt 0:03:45]} Rh5 {[%emt 0:04:03]} 33. b3 {[%emt 0:15:56]} Ne5 {[%emt 0:02:51]} 34. c4 {[%emt 0:00:23]} Qf6 {[%emt 0:01:58]} 35. Qd2 {[%emt 0:03:59]} Kg8 {[%emt 0:02:33]} 36. cxd5 {[%emt 0:01:08]} Nd3 {[%emt 0:00:05]} 37. Rxd3 {[%emt 0:04:05]} exd3 {[%emt 0:00:19]} 38. Nf3 {[%emt 0:00:34]} Rxd5 {[%emt 0:00:06]} 39. Qe3 {[%emt 0:00:25]} Rfd8 {[%emt 0:01:16]} 40. Nd2 {[%emt 0:00:34]} Qxh4 {[%emt 0:00:42]} 41. Qe6+ {[%emt 0:00:11]} Kg7 {[%emt 0:00:20]} 42. Qc6 {[%emt 0:00:50]} Rh5 {[%emt 0:00:34]} 43. Qc7+ {[%emt 0:00:41]} Kh6 {[%emt 0:00:09]} 0-1